Cogmind - Beta 17.1 @@@ ROGUE MODE // 2026.09.10 @ 02:51:34 Player: Ev Result: Destroyed by G-34 Mercenary with Small Laser Performance ------------- Evolutions (0) 0 Regions Visited (1) 200 Robots Destroyed (9) 45 Value Destroyed (66) 66 Prototype IDs (0) 0 Alien Tech Used (0) 0 Bonus (0) 0 TOTAL SCORE: 311 Bonus ------- None Cogmind --------- Core Integrity 0/250 Matter 250/300 Energy 7/100 System Corruption 0% Temperature Cool (6) Movement Flying (37) Location -10/Materials Parts ------- > --- POWER (1) -------- (None) > --- PROPULSION (2) --- Flight Unit Flight Unit > --- UTILITY (2) ------ Small Storage Unit > --- WEAPON (2) ------- (None) > --- INVENTORY (8) ---- Light Ion Engine Compact Wheel Flight Unit Improved Terrain Scanner Seismic Detector ECM Suite Peak State ------------ > --- POWER ------------ (None) > --- PROPULSION ------- Flight Unit Flight Unit > --- UTILITY ---------- Small Storage Unit Seismic Detector > --- WEAPON ----------- (None) > --- INVENTORY -------- Light Ion Engine Compact Wheel Improved Terrain Scanner ECM Suite [Rating: 4] Favorites ----------- Power None Propulsion Flight Unit Flight Unit Flight Unit Utility Seismic Detector Device Seismic Detector Storage Small Storage Unit Weapon EM Pulse Gun Energy Gun EM Pulse Gun Build | -11 -10 ------- Run | Yrd Mat Slots Evolved . | . . Power . | . . Propulsion . | . . Utility . | . . Weapon . | . . Parts Attached 10 | 2 8 Power . | . . Engine . | . . Core . | . . Reactor . | . . Propulsion 6 | . 6 Treads . | . . Leg . | . . Wheel . | . . Hover . | . . Flight 6 | . 6 Utility 3 | 1 2 Device 2 | 1 1 Storage 1 | . 1 Processor . | . . Hackware . | . . Protection . | . . Artifact . | . . Weapon 1 | 1 . Energy Gun 1 | 1 . Energy Cannon . | . . Ballistic Gun . | . . Ballistic Cannon . | . . Launcher . | . . Special Weapon . | . . Impact Weapon . | . . Slashing Weapon . | . . Piercing Weapon . | . . Special Melee Weapon . | . . Unidentified Prototypes . | . . Parts Lost 5 | . 5 Power . | . . Propulsion 4 | . 4 Utility . | . . Weapon 1 | . 1 Highest Loss Streak 4 | . 4 To Critical Strikes . | . . Average Backups 3 | 2 4 Power . | . 1 Propulsion 1 | . 1 Utility 1 | 1 2 Weapon . | . . Tool/Special . | . . Unused Backups 4 | . 4 Power 1 | . 1 Propulsion 1 | . 1 Utility 2 | . 2 Weapon . | . . Tool/Special . | . . Average Slot Usage (%) 34 | . 34 Flight 12 | . 12 Device 10 | . 10 Storage 5 | . 5 Energy Gun 6 | . 6 Peak Build Rating 4 | 2 4 Average Rating 2 | 1 2 On Entrance 1 | . 2 Avg Prop Armor Cover (%) . | . . Naked Turns . | . . Heaviest Build 7 | 3 7 Greatest Support 8 | 3 8 Greatest Overweight (x) . | . . Average Overweight (x) . | . . Largest Inventory Capacity 8 | 5 8 Average Capacity 5 | 5 6 Most Carried 8 | 4 8 Average Carried 3 | 3 5 Final Capacity 8 | 5 8 Final Carried 6 | 4 6 Class Distribution -------------------- 100% | Mutant Dominant Class ---------------- Mutant | -10/Materials Resources | -11 -10 ----------- Run | Yrd Mat Matter Collected 240 | 220 20 Remotely . | . . Salvage Created 264 | 232 32 Parts 23 | 16 7 Haulers Intercepted . | . . Recyclers Shooed . | . . Parts Field Recycled . | . . Retrieved Matter . | . . Parts Self-Destructed . | . . Prevented . | . . Parts Restored . | . . Kills | -11 -10 ------- Run | Yrd Mat Combat Hostiles Destroyed 2 | . 2 Guns 2 | . 2 Classes Destroyed 4 | 3 1 Worker 2 | 2 . Tunneler 4 | 4 . Recycler 1 | 1 . Swarmer 2 | . 2 Best Kill Streak 3 | 3 2 Combat Bots Only 2 | . 2 Max Kills in Single Turn 1 | 1 1 Gunslinging . | . . Exploded . | . . Melee . | . . Uniques/NPCs Destroyed . | . . Combat | -11 -10 -------- Run | Yrd Mat Hostile Shots Fired 68 | . 68 Missed 30 | . 30 Hits 38 | . 38 Projectile 38 | . 38 Critical Strikes 2 | . 2 Damage Taken 431 | . 431 Core 255 | . 255 Absorbed by Shields . | . . Core Remaining (%) 100 | 100 . Volleys Fired 28 | 20 8 Largest 1 | 1 1 Hottest 40 | 40 40 Shots Fired 28 | 20 8 Gun 28 | 20 8 Cannon . | . . Launcher . | . . Special . | . . Kinetic . | . . Thermal . | . . Explosive . | . . Electromagnetic 28 | 20 8 Robot Hit Streak 5 | 5 5 Robot Miss Streak 5 | 1 5 Penetration Max . | . . Secondary Targets . | . . Shots Hit Robots 18 | 15 3 Core Hits 9 | 7 2 Critical Kills . | . . Critical Parts Destroyed . | . . Critical Strikes . | . . Melee Attacks . | . . Impact . | . . Slashing . | . . Piercing . | . . Sneak Attacks . | . . Combat Hostiles . | . . Follow-up Attacks . | . . Damage Inflicted 234 | 201 33 Guns 234 | 201 33 Cannons . | . . Explosions . | . . Melee . | . . Ramming . | . . Kinetic . | . . Thermal . | . . Explosive . | . . Electromagnetic 234 | 201 33 Impact . | . . Slashing . | . . Piercing . | . . Highest Corruption . | . . Average Corruption . | . . Corruption Purged . | . . Corruption Blocked . | . . Overload Shots . | . . Overflow Damage . | . . Projectiles . | . . Explosions . | . . Melee . | . . Knockbacks . | . . Impact . | . . Kinetic . | . . Secondary . | . . Self-Inflicted Damage . | . . Shots . | . . Rammed . | . . Targets Rammed . | . . Kicked . | . . Crushed . | . . Highest Temperature 15 | 15 15 Average Temperature 8 | 10 7 Received Heat Transfer 228 | . 228 Siege Activations . | . . Martial Activations . | . . Shielding Activations . | . . Robots Disrupted . | . . Combat Hostiles . | . . Robots Corrupted . | . . Combat Hostiles . | . . Parts Fried 2 | 2 . Impact Corruptions . | . . Robots Melted . | . . Combat Hostiles . | . . Parts Melted . | . . Heat Transferred . | . . Parts Sabotaged . | . . Parts Stolen . | . . Parts Stripped . | . . Power Chain Reactions . | . . Alert | -11 -10 ------- Run | Yrd Mat Maximum Alert Level . | . . Low Security (%) 100 | 100 100 Level 1 . | . . Level 2 . | . . Level 3 . | . . Level 4 . | . . Level 5 . | . . High Security . | . . Max Security . | . . Peak Influence 76 | 10 76 Initial . | . . Average 22 | 3 46 Influence Increases 171 | 35 136 Destroy 0b10 Robot/C 40 | . 40 Destroy 0b10 Robot/NC 35 | 35 . Destroy Leader 10 | . 10 Successful Hack 11 | . 11 Disable Machine 15 | . 15 Lose Combat Pursuer 60 | . 60 Influence Decreases 135 | 35 100 Time Decay 85 | 35 50 Lost Part 50 | . 50 Squads Dispatched 1 | . 1 Investigation 1 | . 1 Extermination . | . . Reinforcement . | . . Assault . | . . Garrison . | . . Intercept . | . . Searches Triggered . | . . Construction Impeded . | . . Haulers Reinforced . | . . Active Scanning Responses . | . . Cargo Convoy Interrupts . | . . Stealth | -11 -10 --------- Run | Yrd Mat Distress Signals 1 | . 1 Communications Jammed . | . . Distress Signals . | . . Times Spotted 12 | . 12 Peak Tracking Total 10 | . 10 Tactical Retreats 1 | . 1 Traps | -11 -10 ------- Run | Yrd Mat Traps Triggered . | . . Indirectly . | . . Trap Hack Attempts . | . . Triggered . | . . Disarmed . | . . Reprogrammed . | . . Reused . | . . Traps Extracted . | . . Installed . | . . Triggered . | . . Machines | -11 -10 ---------- Run | Yrd Mat Machines Disabled 1 | . 1 Max in Single Turn 1 | . 1 Machines Repaired . | . . Machines Dismantled . | . . Machines Sabotaged . | . . Overloaded Fab Kills . | . . Hacking | -11 -10 --------- Run | Yrd Mat Machines Accessed 1 | . 1 Terminals 1 | . 1 Fabricators . | . . Repair Stations . | . . Recycling Units . | . . Scanalyzers . | . . Garrison Access . | . . Total Hacks 4 | . 4 Successful 2 | . 2 Failed 2 | . 2 Catastrophic . | . . Database Lockouts . | . . Manual 2 | . 2 Terminals 4 | . 4 Fabricators . | . . Repair Stations . | . . Recycling Units . | . . Scanalyzers . | . . Garrison Access . | . . Terminal Hacks . | . . Fabricator Hacks . | . . Repair Station Hacks . | . . Recycling Unit Hacks . | . . Scanalyzer . | . . Garrison Access Hacks . | . . Unauthorized Hacks 2 | . 2 Terminals 2 | . 2 Botnet 1 | . 1 Operators 1 | . 1 Fabricators . | . . Repair Stations . | . . Recycling Units . | . . Scanalyzers . | . . Garrison Access . | . . Data Cores Recovered . | . . Used . | . . Hacking Detections 1 | . 1 Full Trace Events 1 | . 1 Feedback Events . | . . Feedback Blocked . | . . Robot Schematics Acquired . | . . Robots Built . | . . Authchips . | . . Time . | . . Total Robot Build Rating . | . . Part Schematics Acquired . | . . Parts Built . | . . Authchips . | . . Time . | . . Total Part Build Rating . | . . Part Studies Acquired . | . . Parts Repaired . | . . Time . | . . Parts Recycled . | . . Recycled Matter . | . . Retrieved Matter . | . . Retrieved Components . | . . Parts Scanalyzed . | . . Part Schematics Acquired . | . . Parts Damaged . | . . Bothacking | -11 -10 ------------ Run | Yrd Mat Used RIF Installer . | . . Robots Hacked . | . . Non-combat . | . . Combat . | . . Robot Hacks Applied . | . . Relay Couplers Released . | . . Fabnet Peak Effective % . | . . Robots Rewired . | . . Allies Hacked . | . . Hacks Repelled . | . . Allies | -11 -10 -------- Run | Yrd Mat Total Allies . | . . Largest Group . | . . Highest-Rated Group . | . . Highest-Rated Ally . | . . Total Orders . | . . Ally Attacks . | . . Total Damage . | . . Kills . | . . Allies Corrupted . | . . Allies Melted . | . . Intel | -11 -10 ------- Run | Yrd Mat Active Infowar (turns) 160 | 99 61 Seismic 155 | 99 56 ECM 5 | . 5 Robot Analysis Total . | . . Derelict Logs Recovered . | . . Drone Launches . | . . Drone Recoveries . | . . Exploration | -11 -10 ------------- Run | Yrd Mat Turns Passed 227 | 127 100 Spaces Moved 158 | 61 97 Core 97 | 61 36 Treads . | . . Legs . | . . Wheels . | . . Hover . | . . Flight 61 | . 61 Fastest Speed 37 | 50 37 Average Speed 45 | 50 41 Slowest Speed 50 | 50 50 Overloaded Moves . | . . Propulsion Burnouts . | . . Robots Hopped 4 | . 4 Potential Cave-ins . | . . Cave-ins Triggered . | . . Exploration Rate (%) 16 | 4 28 Regions Visited 1 Branch Regions . Pre-discovered Areas . | . . Known Exits Taken . | . . Unknown Exits Taken 1 | 1 . Scrap Searched . | . . Spaces Dug . | . . Terrain Destroyed . | . . Melee . | . . Projectile . | . . AOE . | . . Terrain Rammed . | . . Walls Destroyed . | . . Machines Disabled . | . . Actions | -11 -10 --------- Run | Yrd Mat Total 280 | 136 144 Wait 73 | 48 25 Move 150 | 60 90 Hop 3 | . 3 Pick Up 13 | 6 7 Fast Attach 2 | . 2 Attach 7 | 2 5 Detach . | . . Swap 2 | . 2 Drop 2 | . 2 Fire 28 | 20 8 Melee . | . . Ram . | . . Kick . | . . Crush . | . . Escape Stasis . | . . Rewire . | . . Trap . | . . Miscellaneous . | . . Route ------- -11/Scrapyard -10/Materials History --------- Turn | Location | Event 2 | -11/Scrapyard | Discovered new exit (range 16) 128 | -11/Scrapyard | Entered Materials 212 | -10/Materials | Core integrity fell below 50% 225 | -10/Materials | Core integrity fell below 20% 228 | -10/Materials | Destroyed by G-34 Mercenary with Small Laser Last Messages --------------- 00176_ Critical hit (Burn: +37). 00177_ Acquired 20 matter. 00181_ K-01 Serf collects debris. 00182_ Acquired ECM Suite. 00189_ K-01 Serf collects debris. 00193_ W-16 Scout sends out distress signal. 00199_ Dropped ECM Suite. 00200_ Acquired ECM Suite. 00203_ Acquired Flight Unit. 00208_ K-01 Serf collects debris. 00209_ Dropped Flight Unit. 00211_ Critical hit (Burn: +37). 00213_ Flight Unit destroyed. 00214_ Acquired Flight Unit. 00215_ K-01 Serf destroyed. 00218_ Flight Unit destroyed. 00219_ Acquired Flight Unit. 00220_ Flight Unit destroyed. 00224_ R-06 Scavenger collects Wheel. 00227_ R-06 Scavenger collects ECM Suite. Map ----- +----------------------------------------------------+ | | | | | | | | | | | | | | | | | | | ?????????????????????????????????????????????????? | | ?????????????????????????????????????????????????? | | ?????????????????????????????????????????????????? | | ?????????????????????????????????????????????????? | | ?????????????????????????????????????????????????? | | ?????????????????????????????????????????????????? | | ?????????????????????????????????????????????????? | | ?????????????????????????????????????????????????? | | ?????????????????????????????????????????????????? | | ?????????????????????????????????????????????????? | | ?????????????????????????????????????????????????? | | ?????????????????????????????????????????????????? | | ?????????????????????????????????????????????????? | | ????????????????????????????######?? ???????????? | | ???????????????????????##### ### ????????????? | | ???????????????????????# # ?????????????? | | ???????????????????????# @ # ??????????????? | | ???????????????????????# # ???????????????? | | ???????????????????????# # ????????????????? | | ???????????????????????#r ## #????????????????? | | ???????????????????????#ggg## #????????????????? | | ????????????????## ???#gg ## #????????????????? | | ????????????????# ###/### #????????????????? | | ????????????????# #????????????????? | | ????????????????# " #????????????????? | | ????????????????# #????????????????? | | ????????????????# ###+### ###????????????????? | | ????????????????######??? ?# #??????????????????? | | ?????????????????????????""?# #??????????????????? | | ?????????????????????????"Y?# #??????????????????? | | ????????????????????????????# #???????????????#### | | ????????????????????????????# ###############?# | | ????????????????????????????# #?# | | ????????????????????????????# #?# "" | | ?????????????????????????# ### "" | | ?????????????????????? = # "" | | ??????????????????? + | | ??????????????????? # ! | | ??????????????????? "##### # | | ?????????????????????????# """" # = | | ?????????????????????????# """" # | +----------------------------------------------------+ Best States ------------- Heat Dissipation 25 Energy Generation 5 Energy Capacity 100 Matter Stores 300 Matter Capacity 300 Sight Range 16 Terrain Scan Density 10 Evasion (%) 62 Item Schematics ----------------- None Robot Schematics ------------------ None Fabricated ------------ Nothing Repaired ---------- Nothing Studied --------- None Alien Tech Used ----------------- None Achievements -------------- None Challenges ------------ None Game ------ Seed BarrageWarlordPenetrator Manual? 0 Play Time 00:07:24 Cumulative 96.8 hours Start 2026.09.10 @ 02:46:52 End 2026.09.10 @ 02:51:34 Sessions 1 Manual Loads 0 Difficulty Rogue Special Mode None Game No. 157 Rogue 157 Adventurer 0 Explorer 0 Win Type - Total 0 Types 0/0/0/0/0/0/0/0/0/0 Lore% 28 Gallery% 38 Achievement% 31 Wizard Run 0 Options --------- Layout 1 ASCII 0 Keyboard 0 Movement Mouse Keybinds 0 Fullscreen 1 Font 16/Cog Map View 50x40 Zoom Use 0% Tactical HUD 1 Map Filters NONE Filters NONE Steam 1 RUN: 43f2a5c0-10e2-42d5-9eb4-3ecbea67bfc9